[Event "Sheikh Russel GM 2021"]
[Site "Dhaka"]
[Date "2021.10.21"]
[Round "3.3"]
[White "Malakhatko, Vadim"]
[Black "Iskandarov, Misratdin"]
[Result "1/2-1/2"]
[ECO "E97"]
[WhiteElo "2444"]
[BlackElo "2552"]
[Annotator "ChessBase"]
[PlyCount "77"]
[EventDate "2021.10.19"]
[EventType "swiss"]
[EventCountry "BAN"]
[SourceTitle "playchess.com"]
[Source "ChessBase"]
[SourceQuality "1"]
[TimeControl "40/5400+30:1800+30"]

1. d4 {[%emt 0:00:04]} d6 {[%emt 0:00:12]} 2. Nf3 {[%emt 0:00:17]} g6 {[%emt 0:00:10]} 3. c4 {[%emt 0:00:15]} Bg7 {[%emt 0:00:11]} 4. Nc3 {[%emt 0:00:05]} Nf6 {[%emt 0:00:12]} 5. e4 {[%emt 0:00:06]} O-O {[%emt 0:00:08]} 6. Be2 {[%emt 0:00:05]} e5 {[%emt 0:00:09]} 7. O-O {[%emt 0:00:06]} Nc6 {[%emt 0:00:06]} 8. d5 {[%emt 0:00:05]} Ne7 {[%emt 0:00:06]} 9. a4 {[%emt 0:00:29]} a5 {[%emt 0:00:07]} 10. Ne1 {[%emt 0:00:05]} Nd7 {[%emt 0:00:27]} 11. Nd3 {[%emt 0:00:08]} f5 {[%emt 0:00:45]} 12. f3 {[%emt 0:00:05]} Kh8 {[%emt 0:04:56]} 13. Nb5 {[%emt 0:00:47]} Nf6 {[%emt 0:03:42]} 14. Nf2 {[%emt 0:00:49]} Bd7 {[%emt 0:04:11]} 15. Ra3 {[%emt 0:02:17]} Bxb5 {[%emt 0:10:01]} 16. cxb5 {[%emt 0:19:42]} c6 {[%emt 0:05:05]} 17. dxc6 {[%emt 0:02:10]} bxc6 {[%emt 0:02:19]} 18. Be3 {[%emt 0:14:35]} cxb5 {[%emt 0:10:26]} 19. axb5 {[%emt 0:02:07]} d5 {[%emt 0:02:58]} 20. Bc5 {[%emt 0:01:57]} Qc7 {[%emt 0:00:26]} 21. Rc3 {[%emt 0:07:22]} fxe4 {[%emt 0:10:34]} 22. fxe4 {[%emt 0:00:07]} Rad8 {[%emt 0:10:20]} 23. Qa4 {[%emt 0:14:47]} Qb7 {[%emt 0:16:47]} 24. Qxa5 {[%emt 0:01:42]} dxe4 {[%emt 0:00:27]} 25. Qa6 {[%emt 0:05:54]} Qd7 {[%emt 0:00:39]} 26. Bc4 {[%emt 0:02:09]} e3 {[%emt 0:15:16]} 27. Rxe3 {[%emt 0:02:46]} Qc7 {[%emt 0:00:39]} 28. Qa7 {[%emt 0:05:16]} Qxa7 {[%emt 0:00:41]} 29. Bxa7 {[%emt 0:00:06]} Nf5 {[%emt 0:00:33]} 30. Ree1 {[%emt 0:00:43]} e4 {[%emt 0:00:42]} 31. Bc5 {[%emt 0:04:16]} Rfe8 {[%emt 0:00:24]} 32. Nd1 {[%emt 0:02:06]} Rc8 {[%emt 0:01:05]} 33. b4 {[%emt 0:00:07]} Nd7 {[%emt 0:00:28]} 34. Bf7 {[%emt 0:01:25]} Re5 {[%emt 0:00:58]} 35. Bf2 {[%emt 0:01:11]} Rxb5 {[%emt 0:00:42]} 36. Be6 {[%emt 0:01:08]} Rd8 {[%emt 0:00:04]} 37. Rxe4 {[%emt 0:02:52]} Nf6 {[%emt 0:00:04]} 38. Rc4 {[%emt 0:01:25]} Nd6 {[%emt 0:00:31]} 39. Rc6 {[%emt 0:05:54]} 1/2-1/2

[Event "Sheikh Russel GM 2021"]
[Site "Dhaka"]
[Date "2021.10.21"]
[Round "3.11"]
[White "Koustav Chatterjee"]
[Black "Visakh N R"]
[Result "1-0"]
[ECO "B51"]
[WhiteElo "2431"]
[BlackElo "2515"]
[Annotator "ChessBase"]
[PlyCount "87"]
[EventDate "2021.10.19"]
[EventType "swiss"]
[EventCountry "BAN"]
[SourceTitle "playchess.com"]
[Source "ChessBase"]
[SourceQuality "1"]
[TimeControl "40/5400+30:1800+30"]

1. e4 {[%emt 0:05:34]} c5 {[%emt 0:00:10]} 2. Nf3 {[%emt 0:00:06]} d6 {[%emt 0:00:07]} 3. Bb5+ {[%emt 0:00:06]} Nd7 {[%emt 0:00:11]} 4. a4 {[%emt 0:00:19]} Ngf6 {[%emt 0:02:43]} 5. Nc3 {[%emt 0:00:07]} g6 {[%emt 0:05:50]} 6. a5 {[%emt 0:02:02]} Bg7 {[%emt 0:01:43]} 7. O-O {[%emt 0:00:46]} a6 {[%emt 0:04:35]} 8. Be2 {[%emt 0:01:45]} e5 {[%emt 0:04:44]} 9. d3 {[%emt 0:02:14]} O-O {[%emt 0:01:08]} 10. Nd2 {[%emt 0:02:30]} b5 {[%emt 0:05:06]} 11. axb6 {[%emt 0:01:35]} Nxb6 {[%emt 0:00:02]} 12. Nc4 {[%emt 0:08:05]} Be6 {[%emt 0:03:17]} 13. Bg5 {[%emt 0:11:24]} h6 {[%emt 0:01:58]} 14. Be3 {[%emt 0:00:41]} Kh7 {[%emt 0:04:48]} 15. Qd2 {[%emt 0:03:13]} Nxc4 {[%emt 0:15:47]} 16. dxc4 {[%emt 0:00:29]} Ng4 {[%emt 0:00:01]} 17. Bxg4 {[%emt 0:07:41]} Bxg4 {[%emt 0:00:02]} 18. f3 {[%emt 0:13:15]} Be6 {[%emt 0:00:11]} 19. Rfd1 {[%emt 0:00:29]} Qb8 {[%emt 0:01:47]} 20. Qxd6 {[%emt 0:05:08]} Qxb2 {[%emt 0:00:31]} 21. Qd2 {[%emt 0:00:05]} Qb7 {[%emt 0:13:20]} 22. Rdb1 {[%emt 0:09:52]} Qc6 {[%emt 0:05:08]} 23. Nd5 {[%emt 0:02:44]} Rfb8 {[%emt 0:00:10]} 24. Qa5 {[%emt 0:02:32]} Bf8 {[%emt 0:01:19]} 25. Kf2 {[%emt 0:03:19]} Rb7 {[%emt 0:01:38]} 26. Rxb7 {[%emt 0:02:26]} Qxb7 {[%emt 0:00:04]} 27. Nc7 {[%emt 0:00:05]} Rb8 {[%emt 0:05:45]} 28. Nxe6 fxe6 {[%emt 0:00:02]} 29. Bxc5 {[%emt 0:07:16]} Bxc5+ {[%emt 0:06:55]} 30. Qxc5 {[%emt 0:00:02]} Rc8 {[%emt 0:00:01]} 31. Qxe5 {[%emt 0:03:46]} Rxc4 {[%emt 0:00:13]} 32. Ra2 {[%emt 0:01:45]} Qc8 {[%emt 0:06:26]} 33. Kg3 {[%emt 0:00:31]} Rc5 {[%emt 0:00:02]} 34. Qd6 {[%emt 0:01:24]} a5 {[%emt 0:03:38]} 35. h4 {[%emt 0:00:20]} Rb5 {[%emt 0:00:53]} 36. Qe7+ {[%emt 0:01:22]} Kg8 {[%emt 0:00:03]} 37. Qf6 {[%emt 0:00:27]} Qc7+ {[%emt 0:02:56]} 38. Kh3 {[%emt 0:01:06]} Kh7 {[%emt 0:00:03]} 39. Qxe6 {[%emt 0:02:03]} Rb1 {[%emt 0:00:02]} 40. e5 {[%emt 0:00:00]} Rh1+ {[%emt 0:00:00]} 41. Kg3 {[%emt 0:03:25]} Qc3 {[%emt 0:02:59]} 42. Qd7+ {[%emt 0:01:38]} Kh8 {[%emt 0:02:08]} 43. Qd8+ {[%emt 0:00:16]} Kh7 {[%emt 0:00:22]} 44. Qxa5 {[%emt 0:00:16]} 1-0

[Event "Sheikh Russel GM 2021"]
[Site "Dhaka"]
[Date "2021.10.21"]
[Round "3.12"]
[White "Mousavi, Seyed Khalil"]
[Black "Shahil Dey"]
[Result "1-0"]
[ECO "B82"]
[WhiteElo "2510"]
[BlackElo "2398"]
[Annotator "ChessBase"]
[PlyCount "63"]
[EventDate "2021.10.19"]
[EventType "swiss"]
[EventCountry "BAN"]
[SourceTitle "playchess.com"]
[Source "ChessBase"]
[SourceQuality "1"]
[TimeControl "40/5400+30:1800+30"]

1. e4 {[%emt 0:00:07]} c5 {[%emt 0:00:17]} 2. Nf3 {[%emt 0:00:37]} e6 {[%emt 0:00:53]} 3. d4 {[%emt 0:00:59]} cxd4 {[%emt 0:00:05]} 4. Nxd4 {[%emt 0:00:07]} a6 {[%emt 0:00:10]} 5. Nc3 {[%emt 0:01:10]} Qc7 {[%emt 0:00:08]} 6. Bd3 {[%emt 0:01:04]} Nf6 {[%emt 0:00:09]} 7. f4 {[%emt 0:01:24]} d6 {[%emt 0:00:23]} 8. Qf3 {[%emt 0:01:13]} Nc6 {[%emt 0:03:49]} 9. Be3 {[%emt 0:01:11]} Be7 {[%emt 0:02:56]} 10. O-O-O {[%emt 0:01:08]} Bd7 {[%emt 0:02:52]} 11. h3 {[%emt 0:09:35]} O-O-O {[%emt 0:21:09]} 12. Qf2 {[%emt 0:10:23]} Rde8 {[%emt 0:14:21]} 13. g4 {[%emt 0:06:19]} h6 {[%emt 0:02:52]} 14. Kb1 {[%emt 0:08:33]} g5 {[%emt 0:02:39]} 15. fxg5 {[%emt 0:04:27]} hxg5 {[%emt 0:00:11]} 16. Nf3 {[%emt 0:00:57]} Nh7 {[%emt 0:18:23]} 17. Na4 {[%emt 0:01:28]} Kb8 {[%emt 0:01:15]} 18. Nb6 {[%emt 0:01:09]} Bf6 {[%emt 0:01:24]} 19. Rhe1 {[%emt 0:09:33]} Bc8 {[%emt 0:05:40]} 20. Bf1 {[%emt 0:00:54]} Ne5 {[%emt 0:06:28]} 21. Nxe5 {[%emt 0:03:11]} Bxe5 {[%emt 0:00:03]} 22. Nc4 {[%emt 0:02:52]} Ka8 {[%emt 0:04:47]} 23. a4 {[%emt 0:07:16]} f6 {[%emt 0:02:02]} 24. Nb6+ {[%emt 0:04:17]} Kb8 {[%emt 0:00:22]} 25. Rd3 {[%emt 0:01:04]} Bd7 {[%emt 0:05:23]} 26. Rb3 {[%emt 0:02:30]} Bc6 {[%emt 0:00:01]} 27. Bxa6 {[%emt 0:05:21]} d5 {[%emt 0:00:16]} 28. Bc5 {[%emt 0:03:54]} Nf8 {[%emt 0:00:59]} 29. a5 {[%emt 0:03:12]} Rh7 {[%emt 0:01:04]} 30. exd5 {[%emt 0:01:42]} exd5 {[%emt 0:00:01]} 31. Bd3 {[%emt 0:01:19]} Rhe7 {[%emt 0:01:25]} 32. a6 {[%emt 0:01:00]} 1-0

[Event "Sheikh Russel GM 2021"]
[Site "Dhaka"]
[Date "2021.10.21"]
[Round "3.13"]
[White "Murshed, Niaz"]
[Black "Debashis, Das"]
[Result "0-1"]
[ECO "A38"]
[WhiteElo "2410"]
[BlackElo "2501"]
[Annotator "ChessBase"]
[PlyCount "76"]
[EventDate "2021.10.19"]
[EventType "swiss"]
[EventCountry "BAN"]
[SourceTitle "playchess.com"]
[Source "ChessBase"]
[SourceQuality "1"]
[TimeControl "40/5400+30:1800+30"]

1. Nf3 {[%emt 0:00:08]} c5 {[%emt 0:01:05]} 2. c4 {[%emt 0:00:48]} Nc6 {[%emt 0:00:14]} 3. g3 {[%emt 0:00:42]} g6 {[%emt 0:00:11]} 4. Bg2 {[%emt 0:00:12]} Bg7 {[%emt 0:00:05]} 5. Nc3 {[%emt 0:01:04]} d6 {[%emt 0:00:06]} 6. O-O {[%emt 0:01:00]} Rb8 {[%emt 0:00:06]} 7. d3 {[%emt 0:15:31]} Nf6 {[%emt 0:06:16]} 8. Rb1 {[%emt 0:02:58]} O-O {[%emt 0:00:28]} 9. a3 {[%emt 0:00:38]} a6 {[%emt 0:00:14]} 10. b4 {[%emt 0:03:32]} cxb4 {[%emt 0:00:09]} 11. axb4 {[%emt 0:00:03]} b5 {[%emt 0:00:30]} 12. cxb5 {[%emt 0:01:59]} axb5 {[%emt 0:00:08]} 13. Ne1 {[%emt 0:10:58]} Bd7 {[%emt 0:11:02]} 14. Nc2 {[%emt 0:01:16]} Qc8 {[%emt 0:05:12]} 15. Nd5 {[%emt 0:04:33]} Nxd5 {[%emt 0:04:08]} 16. Bxd5 {[%emt 0:00:07]} Bh3 {[%emt 0:05:07]} 17. Re1 {[%emt 0:01:20]} Be6 {[%emt 0:03:16]} 18. Bxe6 {[%emt 0:00:53]} fxe6 {[%emt 0:04:09]} 19. Bb2 {[%emt 0:07:39]} e5 {[%emt 0:03:07]} 20. d4 {[%emt 0:00:52]} Qh3 {[%emt 0:09:48]} 21. f3 {[%emt 0:06:43]} Rf5 {[%emt 0:01:22]} 22. e4 {[%emt 0:02:41]} Rh5 {[%emt 0:01:49]} 23. Re2 {[%emt 0:00:10]} Rf8 {[%emt 0:01:20]} 24. d5 {[%emt 0:01:51]} Nd8 {[%emt 0:05:23]} 25. Rg2 {[%emt 0:04:51]} Nf7 {[%emt 0:09:14]} 26. Bc1 {[%emt 0:18:38]} Bh6 {[%emt 0:01:18]} 27. Qe2 {[%emt 0:00:45]} Bxc1 {[%emt 0:07:24]} 28. Rxc1 {[%emt 0:00:06]} Qc8 {[%emt 0:00:23]} 29. h4 {[%emt 0:03:33]} Kh8 {[%emt 0:08:03]} 30. Rf1 {[%emt 0:00:32]} Qd7 {[%emt 0:01:31]} 31. Ne3 {[%emt 0:00:53]} Rc8 {[%emt 0:02:31]} 32. Qd2 {[%emt 0:01:10]} Qa7 {[%emt 0:00:58]} 33. Kh2 {[%emt 0:01:13]} Qa3 {[%emt 0:00:55]} 34. Re2 {[%emt 0:03:02]} Rc3 {[%emt 0:02:40]} 35. Kg2 {[%emt 0:00:14]} Rd3 {[%emt 0:02:30]} 36. Qc1 {[%emt 0:00:28]} Qxb4 {[%emt 0:00:15]} 37. Qc8+ {[%emt 0:01:10]} Kg7 {[%emt 0:00:04]} 38. Rc1 {[%emt 0:00:21]} Rxe3 {[%emt 0:00:27]} 0-1

[Event "Sheikh Russel GM 2021"]
[Site "Dhaka"]
[Date "2021.10.21"]
[Round "3.14"]
[White "Hossain, Enamul"]
[Black "Mitrabha, Guha"]
[Result "0-1"]
[ECO "A67"]
[WhiteElo "2396"]
[BlackElo "2479"]
[Annotator "ChessBase"]
[PlyCount "70"]
[EventDate "2021.10.19"]
[EventType "swiss"]
[EventCountry "BAN"]
[SourceTitle "playchess.com"]
[Source "ChessBase"]
[SourceQuality "1"]
[TimeControl "40/5400+30:1800+30"]

1. d4 {[%emt 0:01:43]} Nf6 {[%emt 0:00:35]} 2. c4 {[%emt 0:00:16]} c5 {[%emt 0:00:07]} 3. d5 {[%emt 0:00:09]} e6 {[%emt 0:00:06]} 4. Nc3 {[%emt 0:00:09]} exd5 {[%emt 0:00:04]} 5. cxd5 {[%emt 0:00:10]} d6 {[%emt 0:00:02]} 6. e4 {[%emt 0:00:20]} g6 {[%emt 0:00:05]} 7. f4 {[%emt 0:00:22]} Bg7 {[%emt 0:00:06]} 8. Bb5+ {[%emt 0:00:07]} Nfd7 {[%emt 0:00:04]} 9. a4 {[%emt 0:00:13]} O-O {[%emt 0:00:08]} 10. Nf3 {[%emt 0:00:06]} a6 {[%emt 0:06:40]} 11. Bd3 {[%emt 0:02:57]} Qc7 {[%emt 0:00:34]} 12. O-O {[%emt 0:02:05]} Re8 {[%emt 0:01:50]} 13. Kh1 {[%emt 0:06:48]} c4 {[%emt 0:07:48]} 14. Bc2 {[%emt 0:03:34]} Nc5 {[%emt 0:00:38]} 15. f5 {[%emt 0:12:36]} Nbd7 {[%emt 0:00:31]} 16. Bg5 {[%emt 0:01:09]} Rb8 {[%emt 0:03:00]} 17. Qd2 {[%emt 0:16:26]} b5 {[%emt 0:02:04]} 18. axb5 {[%emt 0:02:25]} axb5 {[%emt 0:00:01]} 19. Nd4 {[%emt 0:15:24]} b4 {[%emt 0:02:52]} 20. Ncb5 {[%emt 0:15:42]} Qb6 {[%emt 0:01:24]} 21. f6 {[%emt 0:01:11]} Bh8 {[%emt 0:00:11]} 22. Qxb4 {[%emt 0:03:41]} h6 {[%emt 0:04:00]} 23. Bxh6 {[%emt 0:05:12]} Nxf6 {[%emt 0:00:56]} 24. Qd2 {[%emt 0:02:55]} Bd7 {[%emt 0:01:00]} 25. Nc3 {[%emt 0:00:58]} Ncxe4 {[%emt 0:02:16]} 26. Bxe4 {[%emt 0:01:32]} Nxe4 {[%emt 0:00:17]} 27. Qf4 {[%emt 0:00:21]} f5 {[%emt 0:00:26]} 28. Ne6 {[%emt 0:02:10]} Bxe6 {[%emt 0:02:05]} 29. dxe6 {[%emt 0:03:23]} Rxe6 {[%emt 0:01:49]} 30. Nxe4 {[%emt 0:00:45]} Rxe4 {[%emt 0:00:02]} 31. Qg3 {[%emt 0:00:21]} Rg4 {[%emt 0:00:22]} 32. Qf3 {[%emt 0:00:01]} Qb7 {[%emt 0:00:18]} 33. Qe2 {[%emt 0:01:14]} Qxb2 {[%emt 0:01:15]} 34. Qe6+ {[%emt 0:00:30]} Kh7 {[%emt 0:00:01]} 35. Rg1 {[%emt 0:00:30]} Kxh6 {[%emt 0:00:33]} 0-1

[Event "Sheikh Russel GM 2021"]
[Site "Dhaka"]
[Date "2021.10.21"]
[Round "3.15"]
[White "Savchenko, Stanislav"]
[Black "Laxman, R.R."]
[Result "0-1"]
[ECO "A17"]
[WhiteElo "2473"]
[BlackElo "2411"]
[Annotator "ChessBase"]
[PlyCount "100"]
[EventDate "2021.10.19"]
[EventType "swiss"]
[EventCountry "BAN"]
[SourceTitle "playchess.com"]
[Source "ChessBase"]
[SourceQuality "1"]
[TimeControl "40/5400+30:1800+30"]

1. Nf3 {[%emt 0:01:35]} Nf6 {[%emt 0:00:09]} 2. c4 {[%emt 0:00:54]} e6 {[%emt 0:00:09]} 3. Nc3 {[%emt 0:00:39]} Bb4 {[%emt 0:01:13]} 4. g3 {[%emt 0:02:25]} O-O {[%emt 0:02:23]} 5. Bg2 {[%emt 0:02:23]} d5 {[%emt 0:02:13]} 6. a3 {[%emt 0:17:42]} Bxc3 {[%emt 0:03:13]} 7. dxc3 {[%emt 0:01:13]} c6 {[%emt 0:00:13]} 8. O-O {[%emt 0:02:41]} Nbd7 {[%emt 0:00:59]} 9. cxd5 {[%emt 0:06:14]} exd5 {[%emt 0:00:18]} 10. Qc2 {[%emt 0:02:10]} Re8 {[%emt 0:01:18]} 11. Bf4 {[%emt 0:09:53]} Ne4 {[%emt 0:02:10]} 12. Rad1 {[%emt 0:03:26]} Ndf6 {[%emt 0:01:33]} 13. Nd4 {[%emt 0:06:44]} Qe7 {[%emt 0:01:53]} 14. c4 {[%emt 0:02:32]} dxc4 {[%emt 0:13:39]} 15. Qxc4 {[%emt 0:01:02]} Nd5 {[%emt 0:03:03]} 16. Bc1 {[%emt 0:01:42]} Bd7 {[%emt 0:01:04]} 17. Qc2 {[%emt 0:02:44]} Rac8 {[%emt 0:09:44]} 18. f3 {[%emt 0:03:30]} Nef6 {[%emt 0:00:21]} 19. e4 {[%emt 0:00:30]} c5 {[%emt 0:01:04]} 20. Ne2 {[%emt 0:00:54]} Nc7 {[%emt 0:12:22]} 21. Rfe1 {[%emt 0:07:30]} Nb5 {[%emt 0:04:04]} 22. Bg5 {[%emt 0:06:42]} Bc6 {[%emt 0:38:25]} 23. a4 {[%emt 0:05:19]} Nc7 {[%emt 0:00:00]} 24. Nc3 {[%emt 0:02:03]} h6 {[%emt 0:00:00]} 25. Be3 {[%emt 0:03:26]} Rcd8 {[%emt 0:00:00]} 26. Rxd8 {[%emt 0:05:24]} Rxd8 {[%emt 0:00:00]} 27. Rd1 {[%emt 0:00:06]} Ne6 {[%emt 0:00:00]} 28. Rxd8+ {[%emt 0:02:24]} Qxd8 {[%emt 0:00:00]} 29. Qd2 {[%emt 0:00:16]} Qxd2 {[%emt 0:00:00]} 30. Bxd2 {[%emt 0:00:01]} Nd4 {[%emt 0:00:00]} 31. Kf2 {[%emt 0:00:32]} Nd7 {[%emt 0:00:00]} 32. Bf1 {[%emt 0:01:16]} Ne5 {[%emt 0:00:00]} 33. Be2 {[%emt 0:00:24]} f5 {[%emt 0:00:00]} 34. exf5 {[%emt 0:00:39]} Nxe2 {[%emt 0:00:00]} 35. Kxe2 {[%emt 0:00:29]} Bxf3+ {[%emt 0:00:00]} 36. Ke3 {[%emt 0:00:26]} Bc6 {[%emt 0:00:00]} 37. b3 {[%emt 0:00:37]} Nf3 {[%emt 0:00:00]} 38. h3 {[%emt 0:00:29]} Nd4 {[%emt 0:00:00]} 39. Nb5 {[%emt 0:00:31]} Bxb5 {[%emt 0:00:00]} 40. axb5 {[%emt 0:00:00]} Nxb5 {[%emt 0:00:00]} 41. Kd3 {[%emt 0:13:31]} Nd4 {[%emt 0:00:00]} 42. b4 {[%emt 0:00:15]} Nf3 {[%emt 0:00:00]} 43. bxc5 {[%emt 0:02:02]} Nxd2 {[%emt 0:00:00]} 44. Kxd2 {[%emt 0:00:01]} Kf7 {[%emt 0:00:00]} 45. Kd3 {[%emt 0:01:17]} Kf6 {[%emt 0:00:00]} 46. g4 {[%emt 0:08:21]} Kg5 {[%emt 0:00:00]} 47. Kc4 {[%emt 0:01:09]} Kh4 {[%emt 0:00:00]} 48. Kd5 {[%emt 0:00:16]} a5 {[%emt 0:00:00]} 49. Kc4 {[%emt 0:00:22]} Kxh3 {[%emt 0:00:00]} 50. Kb5 {[%emt 0:00:00]} a4 {[%emt 0:00:00]} 0-1

[Event "Sheikh Russel GM 2021"]
[Site "Dhaka"]
[Date "2021.10.21"]
[Round "3.16"]
[White "Srijit Paul"]
[Black "Rios, Cristhian Camilo"]
[Result "1/2-1/2"]
[ECO "B33"]
[WhiteElo "2332"]
[BlackElo "2457"]
[Annotator "ChessBase"]
[PlyCount "61"]
[EventDate "2021.10.19"]
[EventType "swiss"]
[EventCountry "BAN"]
[SourceTitle "playchess.com"]
[Source "ChessBase"]
[SourceQuality "1"]
[TimeControl "40/5400+30:1800+30"]

1. e4 {[%emt 0:00:03]} c5 {[%emt 0:01:25]} 2. Nf3 {[%emt 0:00:26]} Nc6 {[%emt 0:00:18]} 3. d4 {[%emt 0:00:13]} cxd4 {[%emt 0:00:08]} 4. Nxd4 {[%emt 0:00:05]} Nf6 {[%emt 0:00:11]} 5. Nc3 {[%emt 0:00:08]} e5 {[%emt 0:00:08]} 6. Ndb5 {[%emt 0:00:17]} d6 {[%emt 0:00:09]} 7. Bg5 {[%emt 0:02:31]} a6 {[%emt 0:00:51]} 8. Na3 {[%emt 0:00:05]} b5 {[%emt 0:00:08]} 9. Nd5 {[%emt 0:00:44]} Be7 {[%emt 0:00:10]} 10. Bxf6 {[%emt 0:00:03]} Bxf6 {[%emt 0:00:09]} 11. c4 {[%emt 0:00:03]} b4 {[%emt 0:00:48]} 12. Nc2 {[%emt 0:00:06]} O-O {[%emt 0:00:10]} 13. h4 {[%emt 0:00:06]} a5 {[%emt 0:00:07]} 14. g3 {[%emt 0:00:04]} Be6 {[%emt 0:00:08]} 15. Bh3 {[%emt 0:00:04]} a4 {[%emt 0:00:07]} 16. Kf1 {[%emt 0:02:50]} b3 {[%emt 0:02:45]} 17. Nce3 {[%emt 0:00:20]} Nd4 {[%emt 1:31:18]} 18. Kg2 {[%emt 0:01:07]} Rb8 {[%emt 0:00:30]} 19. axb3 {[%emt 0:23:56]} Rxb3 {[%emt 0:00:00]} 20. Qd2 {[%emt 0:00:11]} Qb8 {[%emt 0:00:00]} 21. Nxf6+ {[%emt 0:04:40]} gxf6 {[%emt 0:00:00]} 22. Ra2 {[%emt 1:03:28]} Qb7 {[%emt 0:00:00]} 23. Nd5 {[%emt 0:00:00]} Bxd5 {[%emt 0:00:00]} 24. cxd5 {[%emt 0:01:00]} Rb8 {[%emt 0:03:00]} 25. Qh6 {[%emt 0:00:00]} Rxb2 {[%emt 0:00:30]} 26. Rxb2 {[%emt 0:00:00]} Qxb2 {[%emt 0:00:30]} 27. Re1 {[%emt 0:00:00]} Qc3 {[%emt 0:00:00]} 28. Re3 {[%emt 0:00:00]} Qc1 {[%emt 0:01:00]} 29. Qxf6 {[%emt 0:00:00]} Rb1 {[%emt 0:00:00]} 30. Qg5+ {[%emt 0:00:00]} Kf8 {[%emt 0:01:00]} 31. Qd8+ {[%emt 0:00:00]} 1/2-1/2

[Event "Sheikh Russel GM 2021"]
[Site "Dhaka"]
[Date "2021.10.21"]
[Round "3.17"]
[White "Aditya Mittal"]
[Black "Mohammad Fahad, Rahman"]
[Result "1/2-1/2"]
[ECO "D37"]
[WhiteElo "2447"]
[BlackElo "2330"]
[Annotator "ChessBase"]
[PlyCount "81"]
[EventDate "2021.10.19"]
[EventType "swiss"]
[EventCountry "BAN"]
[SourceTitle "playchess.com"]
[Source "ChessBase"]
[SourceQuality "1"]
[TimeControl "40/5400+30:1800+30"]

1. d4 {[%emt 0:00:09]} d5 {[%emt 0:00:11]} 2. c4 {[%emt 0:00:05]} e6 {[%emt 0:00:09]} 3. Nc3 {[%emt 0:00:11]} a6 {[%emt 0:00:10]} 4. cxd5 {[%emt 0:02:16]} exd5 {[%emt 0:00:02]} 5. Nf3 {[%emt 0:00:07]} Nf6 {[%emt 0:00:13]} 6. Bg5 {[%emt 0:00:45]} Be6 {[%emt 0:00:18]} 7. e3 {[%emt 0:00:55]} Nbd7 {[%emt 0:00:16]} 8. Bd3 {[%emt 0:00:08]} Bd6 {[%emt 0:00:11]} 9. O-O {[%emt 0:01:31]} c6 {[%emt 0:00:21]} 10. Bf4 {[%emt 0:04:32]} Qc7 {[%emt 0:01:11]} 11. Qd2 {[%emt 0:01:23]} h6 {[%emt 0:03:39]} 12. b4 {[%emt 0:05:14]} O-O {[%emt 0:03:02]} 13. h3 {[%emt 0:03:14]} Nh5 {[%emt 0:03:28]} 14. Bxd6 {[%emt 0:06:02]} Qxd6 {[%emt 0:00:28]} 15. Ne2 {[%emt 0:00:14]} Nhf6 {[%emt 0:12:21]} 16. Ng3 {[%emt 0:00:27]} Rfe8 {[%emt 0:00:27]} 17. Qb2 {[%emt 0:02:13]} b5 {[%emt 0:10:26]} 18. a4 {[%emt 0:24:21]} Nb6 {[%emt 0:00:24]} 19. a5 {[%emt 0:01:34]} Nc4 {[%emt 0:00:36]} 20. Qc3 {[%emt 0:02:14]} Nxe3 {[%emt 0:05:50]} 21. Rfe1 {[%emt 0:00:04]} Nc4 {[%emt 0:01:04]} 22. Re2 {[%emt 0:03:08]} Qf4 {[%emt 0:12:04]} 23. Rae1 {[%emt 0:07:23]} Rac8 {[%emt 0:04:35]} 24. Ne5 {[%emt 0:15:20]} h5 {[%emt 0:12:41]} 25. Nf1 {[%emt 0:04:35]} h4 {[%emt 0:02:09]} 26. Nd2 {[%emt 0:03:57]} Bf5 {[%emt 0:01:08]} 27. Nb3 {[%emt 0:01:33]} Nxe5 {[%emt 0:06:28]} 28. Bxf5 {[%emt 0:04:17]} Qxf5 {[%emt 0:01:34]} 29. Rxe5 {[%emt 0:00:04]} Rxe5 {[%emt 0:01:21]} 30. Rxe5 {[%emt 0:00:24]} Ne4 {[%emt 0:01:16]} 31. Qe3 {[%emt 0:02:56]} Qg6 {[%emt 0:00:47]} 32. Qf4 {[%emt 0:00:50]} f6 {[%emt 0:03:04]} 33. Re7 {[%emt 0:00:10]} Re8 {[%emt 0:00:02]} 34. Rxe8+ {[%emt 0:02:23]} Qxe8 {[%emt 0:00:03]} 35. Qxh4 {[%emt 0:01:10]} Qe7 {[%emt 0:06:38]} 36. Qh5 {[%emt 0:00:44]} Qxb4 {[%emt 0:07:45]} 37. Qe8+ {[%emt 0:00:05]} Kh7 {[%emt 0:00:11]} 38. Qh5+ {[%emt 0:00:04]} Kg8 {[%emt 0:00:05]} 39. Qe8+ {[%emt 0:00:10]} Kh7 {[%emt 0:00:29]} 40. Qh5+ {[%emt 0:00:00]} Kg8 {[%emt 0:00:00]} 41. Qe8+ {[%emt 0:00:10]} 1/2-1/2

[Event "Sheikh Russel GM 2021"]
[Site "Dhaka"]
[Date "2021.10.21"]
[Round "3.18"]
[White "Sumets, Andrey"]
[Black "Abdyjapar, Asyl"]
[Result "1-0"]
[ECO "E97"]
[WhiteElo "2497"]
[BlackElo "2391"]
[Annotator "ChessBase"]
[PlyCount "81"]
[EventDate "2021.10.19"]
[EventType "swiss"]
[EventCountry "BAN"]
[SourceTitle "playchess.com"]
[Source "ChessBase"]
[SourceQuality "1"]
[TimeControl "40/5400+30:1800+30"]

1. d4 {[%emt 0:00:01]} Nf6 {[%emt 0:00:06]} 2. c4 {[%emt 0:00:03]} g6 {[%emt 0:00:06]} 3. Nc3 {[%emt 0:00:04]} Bg7 {[%emt 0:00:04]} 4. e4 {[%emt 0:00:03]} d6 {[%emt 0:00:03]} 5. Nf3 {[%emt 0:00:03]} O-O {[%emt 0:00:05]} 6. Be2 {[%emt 0:00:02]} e5 {[%emt 0:00:05]} 7. O-O {[%emt 0:00:04]} Nc6 {[%emt 0:00:05]} 8. d5 {[%emt 0:00:06]} Ne7 {[%emt 0:00:06]} 9. Qc2 {[%emt 0:04:50]} Nh5 {[%emt 0:04:25]} 10. h3 {[%emt 0:04:33]} Nf4 {[%emt 0:01:00]} 11. Bxf4 {[%emt 0:00:39]} exf4 {[%emt 0:00:04]} 12. Qd2 {[%emt 0:00:38]} g5 {[%emt 0:07:26]} 13. Nxg5 {[%emt 0:01:21]} Ng6 {[%emt 0:01:31]} 14. Nf3 {[%emt 0:00:30]} a6 {[%emt 0:01:10]} 15. Rac1 {[%emt 0:06:54]} Kh8 {[%emt 0:03:09]} 16. Kh1 {[%emt 0:30:37]} Be5 {[%emt 0:13:39]} 17. Rg1 {[%emt 0:06:08]} Rg8 {[%emt 0:09:43]} 18. c5 {[%emt 0:06:10]} Nh4 {[%emt 0:08:09]} 19. Nxe5 {[%emt 0:11:29]} dxe5 {[%emt 0:00:12]} 20. Qd3 {[%emt 0:05:02]} Qg5 {[%emt 0:05:19]} 21. Rcd1 {[%emt 0:01:26]} Qh6 {[%emt 0:02:34]} 22. d6 {[%emt 0:12:12]} Be6 {[%emt 0:42:29]} 23. dxc7 {[%emt 0:03:44]} Nxg2 {[%emt 0:00:00]} 24. Qf3 {[%emt 0:00:09]} Nh4 {[%emt 0:00:00]} 25. Qh5 {[%emt 0:00:05]} Rxg1+ {[%emt 0:00:00]} 26. Kxg1 {[%emt 0:02:11]} Rg8+ {[%emt 0:00:00]} 27. Kh1 {[%emt 0:00:04]} Qf6 {[%emt 0:00:00]} 28. Nd5 {[%emt 0:00:39]} Qg7 {[%emt 0:00:00]} 29. Bg4 {[%emt 0:00:45]} Ng6 {[%emt 0:00:00]} 30. Nb6 {[%emt 0:00:39]} f3 {[%emt 0:00:00]} 31. Rd8 {[%emt 0:00:52]} Ne7 {[%emt 0:00:00]} 32. Rxg8+ {[%emt 0:00:56]} Kxg8 {[%emt 0:00:00]} 33. Qh4 {[%emt 0:00:06]} Kf8 {[%emt 0:00:09]} 34. c8=Q+ {[%emt 0:00:18]} Bxc8 {[%emt 0:00:10]} 35. Nxc8 {[%emt 0:00:04]} Nc6 {[%emt 0:00:10]} 36. Bxf3 {[%emt 0:00:17]} Qg6 {[%emt 0:00:17]} 37. Nd6 {[%emt 0:00:13]} b6 {[%emt 0:00:32]} 38. Qg4 {[%emt 0:01:15]} Qf6 {[%emt 0:00:03]} 39. Qc8+ {[%emt 0:00:17]} Nd8 {[%emt 0:00:03]} 40. Nf5 {[%emt 0:00:00]} bxc5 {[%emt 0:00:00]} 41. Qxc5+ {[%emt 0:00:26]} 1-0